{"text_format":"3","workbook":"xlsx","n_sheets":4,"sheets":["BẮT ĐẦU","THAM SỐ CỦA DỰ ÁN","CHI TIẾT VỀ DỰ ÁN","TỔNG CỦA DỰ ÁN"],"not_rendered":{"charts":2,"defined_names":3,"pivot_tables":1},"read":"whole","date_system":"1900"}

{"sheet":"BẮT ĐẦU","index":0,"n_rows":7,"n_cols":2,"rows_kept":7}
[null,"GIỚI THIỆU VỀ MẪU NÀY"]
[null,"Theo dõi Tham số dự án, Chi tiết dự án và Tổng của dự án trong sổ làm việc Trình theo dõi lập kế hoạch sự kiện này."]
[null,"Nhập thông tin vào trang tính Tham số dự án để cập nhật biểu đồ cột và đồng thời nhập vào trang tính Chi tiết về dự án. PivotTable trong trang tính Tổng của dự án được cập nhật tự động."]
[null,"Điền Tên công ty vào trang tính Tham số và tên sẽ được cập nhật tự động trong các trang tính khác."]
[null,"Lưu ý:  "]
[null,"Hướng dẫn bổ sung được cung cấp trong cột A của từng trang tính trong sổ làm việc TRÌNH THEO DÕI LẬP KẾ HOẠCH SỰ KIỆN. Phần văn bản này được cố ý ẩn đi. Để loại bỏ văn bản, chọn cột A, rồi chọn XÓA. Để bỏ ẩn văn bản, chọn cột A, rồi thay đổi màu phông chữ."]
[null,"Để tìm hiểu thêm về các bảng trong trang tính, hãy nhấn SHIFT, nhấn F10 trong bảng, chọn tùy chọn BẢNG, rồi chọn VĂN BẢN THAY THẾ."]

{"sheet":"THAM SỐ CỦA DỰ ÁN","index":1,"n_rows":19,"n_cols":9,"rows_kept":19,"merged":[[23,1,42,3]]}
[null,"Tên Công ty"]
[null,"Trình theo dõi dự án quản lý sự kiện"]
[null,{"$f":"B1&\" Bí mật\"","v":"Tên Công ty Bí mật"}]
[null,"Các ô được tô bóng sẽ được tính toán cho bạn. Bạn không cần nhập gì vào đó."]
[null,"LOẠI DỰ ÁN","NGƯỜI QUẢN LÝ TÀI KHOẢN","NGƯỜI QUẢN LÝ DỰ ÁN","NGƯỜI QUẢN LÝ CHIẾN LƯỢC","CHUYÊN GIA THIẾT KẾ","NHÂN VIÊN SỰ KIỆN","NHÂN VIÊN QUẢN TRỊ","Tổng"]
[null,"Phát triển chiến lược sự kiện",{"v":0.2,"d":"20%"},{"v":0.1,"d":"10%"},{"v":0.6,"d":"60%"},{"v":0,"d":"0%"},{"v":0,"d":"0%"},{"v":0.1,"d":"10%"},{"$f":"SUM(Tham_số[[#This Row],[NGƯỜI QUẢN LÝ TÀI KHOẢN]:[NHÂN VIÊN QUẢN TRỊ]])","v":{"v":1,"d":"100%"}}]
[null,"Lập kế hoạch sự kiện",{"v":0.2,"d":"20%"},{"v":0.5,"d":"50%"},{"v":0.1,"d":"10%"},{"v":0.1,"d":"10%"},{"v":0,"d":"0%"},{"v":0.1,"d":"10%"},{"$f":"SUM(Tham_số[[#This Row],[NGƯỜI QUẢN LÝ TÀI KHOẢN]:[NHÂN VIÊN QUẢN TRỊ]])","v":{"v":0.9999999999999999,"d":"100%"}}]
[null,"Thiết kế sự kiện",{"v":0.2,"d":"20%"},{"v":0.2,"d":"20%"},{"v":0,"d":"0%"},{"v":0.5,"d":"50%"},{"v":0,"d":"0%"},{"v":0.1,"d":"10%"},{"$f":"SUM(Tham_số[[#This Row],[NGƯỜI QUẢN LÝ TÀI KHOẢN]:[NHÂN VIÊN QUẢN TRỊ]])","v":{"v":1,"d":"100%"}}]
[null,"Dịch vụ hậu cần cho sự kiện",{"v":0.2,"d":"20%"},{"v":0.6,"d":"60%"},{"v":0,"d":"0%"},{"v":0,"d":"0%"},{"v":0.1,"d":"10%"},{"v":0.1,"d":"10%"},{"$f":"SUM(Tham_số[[#This Row],[NGƯỜI QUẢN LÝ TÀI KHOẢN]:[NHÂN VIÊN QUẢN TRỊ]])","v":{"v":1,"d":"100%"}}]
[null,"Cung cấp nhân viên cho sự kiện",{"v":0.2,"d":"20%"},{"v":0.1,"d":"10%"},{"v":0,"d":"0%"},{"v":0,"d":"0%"},{"v":0.6,"d":"60%"},{"v":0.1,"d":"10%"},{"$f":"SUM(Tham_số[[#This Row],[NGƯỜI QUẢN LÝ TÀI KHOẢN]:[NHÂN VIÊN QUẢN TRỊ]])","v":{"v":1,"d":"100%"}}]
[null,"Đánh giá sự kiện",{"v":0.2,"d":"20%"},{"v":0.2,"d":"20%"},{"v":0.2,"d":"20%"},{"v":0.2,"d":"20%"},{"v":0,"d":"0%"},{"v":0.2,"d":"20%"},{"$f":"SUM(Tham_số[[#This Row],[NGƯỜI QUẢN LÝ TÀI KHOẢN]:[NHÂN VIÊN QUẢN TRỊ]])","v":{"v":1,"d":"100%"}}]
[null,"Mức giá tổng hợp",{"v":180,"d":"180 ₫"},{"v":120,"d":"120 ₫"},{"v":150,"d":"150 ₫"},{"v":100,"d":"100 ₫"},{"v":80,"d":"80 ₫"},{"v":60,"d":"60 ₫"}]
[]
[{"$nulls":5},"Biểu đồ cột thể hiện số giờ theo kế hoạch so với số giờ thực tế nằm trong ô này."]
[null,null,"NGƯỜI QUẢN LÝ TÀI KHOẢN","NGƯỜI QUẢN LÝ DỰ ÁN","NGƯỜI QUẢN LÝ CHIẾN LƯỢC","CHUYÊN GIA THIẾT KẾ","NHÂN VIÊN SỰ KIỆN","NHÂN VIÊN QUẢN TRỊ"]
[null,"CHI PHÍ THEO KẾ HOẠCH",{"$f":"SUBTOTAL(109,Chi_tiết_dự_án[NGƯỜI QUẢN LÝ TÀI KHOẢN])","v":{"v":54000,"d":"54,000.00 ₫"}},{"$f":"SUBTOTAL(109,Chi_tiết_dự_án[NGƯỜI QUẢN LÝ DỰ ÁN])","v":{"v":52200,"d":"52,200.00 ₫"}},{"$f":"SUBTOTAL(109,Chi_tiết_dự_án[NGƯỜI QUẢN LÝ CHIẾN LƯỢC])","v":{"v":24000,"d":"24,000.00 ₫"}},{"$f":"SUBTOTAL(109,Chi_tiết_dự_án[CHUYÊN GIA THIẾT KẾ])","v":{"v":29000,"d":"29,000.00 ₫"}},{"$f":"SUBTOTAL(109,Chi_tiết_dự_án[NHÂN VIÊN SỰ KIỆN])","v":{"v":13200,"d":"13,200.00 ₫"}},{"$f":"SUBTOTAL(109,Chi_tiết_dự_án[NHÂN VIÊN QUẢN TRỊ])","v":{"v":9000,"d":"9,000.00 ₫"}}]
[null,"CHI PHÍ THỰC TẾ",{"$f":"SUBTOTAL(109,Chi_tiết_dự_án[[NGƯỜI QUẢN LÝ TÀI KHOẢN ]])","v":{"v":54360,"d":"54,360.00 ₫"}},{"$f":"SUBTOTAL(109,Chi_tiết_dự_án[[NGƯỜI QUẢN LÝ DỰ ÁN ]])","v":{"v":51540,"d":"51,540.00 ₫"}},{"$f":"SUBTOTAL(109,Chi_tiết_dự_án[[NGƯỜI QUẢN LÝ CHIẾN LƯỢC ]])","v":{"v":25650,"d":"25,650.00 ₫"}},{"$f":"SUBTOTAL(109,Chi_tiết_dự_án[[CHUYÊN GIA THIẾT KẾ ]])","v":{"v":28900,"d":"28,900.00 ₫"}},{"$f":"SUBTOTAL(109,Chi_tiết_dự_án[[NHÂN VIÊN SỰ KIỆN ]])","v":{"v":13400,"d":"13,400.00 ₫"}},{"$f":"SUBTOTAL(109,Chi_tiết_dự_án[[NHÂN VIÊN QUẢN TRỊ ]])","v":{"v":9060,"d":"9,060.00 ₫"}}]
[null,"SỐ GIỜ THEO KẾ HOẠCH",{"$f":"C16/$C$12","v":{"v":300,"d":"300.00"}},{"$f":"D16/$C$12","v":{"v":290,"d":"290.00"}},{"v":133.33333333333334,"d":"133.33"},{"v":161.11111111111111,"d":"161.11"},{"v":73.33333333333333,"d":"73.33"},{"v":50,"d":"50.00"}]
[null,"SỐ GIỜ THỰC TẾ",{"$f":"C17/$C$12","v":{"v":302,"d":"302.00"}},{"$f":"D17/$C$12","v":{"v":286.3333333333333,"d":"286.33"}},{"$f":"E17/$C$12","v":{"v":142.5,"d":"142.50"}},{"$f":"F17/$C$12","v":{"v":160.55555555555554,"d":"160.56"}},{"$f":"G17/$C$12","v":{"v":74.44444444444444,"d":"74.44"}},{"$f":"H17/$C$12","v":{"v":50.333333333333336,"d":"50.33"}}]

{"sheet":"CHI TIẾT VỀ DỰ ÁN","index":2,"n_rows":10,"n_cols":23,"rows_kept":10}
[null,{"$f":"'THAM SỐ CỦA DỰ ÁN'!B1","v":"Tên Công ty"}]
[null,"Trình theo dõi dự án quản lý sự kiện"]
[null,{"$f":"'THAM SỐ CỦA DỰ ÁN'!B3","v":"Tên Công ty Bí mật"}]
["Nhập thông tin vào bảng Chi tiết dự án bắt đầu từ ô bên phải.\nTHÔNG TIN\nĐể thêm hàng vào bảng bên phải, hãy chọn ô dưới cùng bên phải trong nội dung bảng (không phải hàng tổng), rồi nhấn Tab hoặc nhấn phím SHIFT+F10 ở nơi bạn muốn chèn hàng và chọn Chèn | Hàng bảng bên trên/bên dưới.\nNhớ xóa hết các hàng không dùng vì PivotTable TỔNG CỦA DỰ ÁN sẽ sử dụng tất cả các ô trong bảng, nếu bạn không xóa, kết quả sẽ bị sai.","TÊN DỰ ÁN","LOẠI DỰ ÁN","NGÀY BẮT ĐẦU ƯỚC TÍNH","NGÀY KẾT THÚC ƯỚC TÍNH","NGÀY BẮT ĐẦU THỰC TẾ","NGÀY KẾT THÚC THỰC TẾ","CÔNG VIỆC ƯỚC TÍNH","CÔNG VIỆC THỰC TẾ","LƯỢNG THỜI GIAN ƯỚC TÍNH","LƯỢNG THỜI GIAN THỰC TẾ","NGƯỜI QUẢN LÝ TÀI KHOẢN","NGƯỜI QUẢN LÝ DỰ ÁN","NGƯỜI QUẢN LÝ CHIẾN LƯỢC","CHUYÊN GIA THIẾT KẾ","NHÂN VIÊN SỰ KIỆN","NHÂN VIÊN QUẢN TRỊ","NGƯỜI QUẢN LÝ TÀI KHOẢN ","NGƯỜI QUẢN LÝ DỰ ÁN ","NGƯỜI QUẢN LÝ CHIẾN LƯỢC ","CHUYÊN GIA THIẾT KẾ ","NHÂN VIÊN SỰ KIỆN ","NHÂN VIÊN QUẢN TRỊ "]
[null,"Dự án 1","Phát triển chiến lược sự kiện",{"$f":"DATE(YEAR(TODAY()),6,9)","v":"2022-06-09"},{"$f":" DATE(YEAR(TODAY()),8,7)","v":"2022-08-07"},{"$f":"DATE(YEAR(TODAY()),6,29)","v":"2022-06-29"},{"$f":"DATE(YEAR(TODAY()),9,3)","v":"2022-09-03"},200,220,{"$f":"DAYS360(Chi_tiết_dự_án[[#This Row],[NGÀY BẮT ĐẦU ƯỚC TÍNH]],Chi_tiết_dự_án[[#This Row],[NGÀY KẾT THÚC ƯỚC TÍNH]],FALSE)","v":58},{"$f":"DAYS360(Chi_tiết_dự_án[[#This Row],[NGÀY BẮT ĐẦU THỰC TẾ]],Chi_tiết_dự_án[[#This Row],[NGÀY KẾT THÚC THỰC TẾ]],FALSE)","v":64},{"$f":"INDEX(Tham_số[],MATCH(Chi_tiết_dự_án[[#This Row],[LOẠI DỰ ÁN]],Tham_số[LOẠI DỰ ÁN],0),MATCH(Chi_tiết_dự_án[[#Headers],[NGƯỜI QUẢN LÝ TÀI KHOẢN]],Tham_số[#Headers],0))*INDEX('THAM SỐ CỦA DỰ ÁN'!$B$12:$H$12,1,MATCH(Chi_tiết_dự_án[[#Headers],[NGƯỜI QUẢN LÝ TÀI KHOẢN]],Tham_số[#Headers],0))*Chi_tiết_dự_án[[#This Row],[CÔNG VIỆC ƯỚC TÍNH]]","v":{"v":7200,"d":"7,200 ₫"}},{"$f":"INDEX(Tham_số[],MATCH(Chi_tiết_dự_án[[#This Row],[LOẠI DỰ ÁN]],Tham_số[LOẠI DỰ ÁN],0),MATCH(Chi_tiết_dự_án[[#Headers],[NGƯỜI QUẢN LÝ DỰ ÁN]],Tham_số[#Headers],0))*INDEX('THAM SỐ CỦA DỰ ÁN'!$B$12:$H$12,1,MATCH(Chi_tiết_dự_án[[#Headers],[NGƯỜI QUẢN LÝ DỰ ÁN]],Tham_số[#Headers],0))*Chi_tiết_dự_án[[#This Row],[CÔNG VIỆC ƯỚC TÍNH]]","v":{"v":2400,"d":"2,400 ₫"}},{"$f":"INDEX(Tham_số[],MATCH(Chi_tiết_dự_án[[#This Row],[LOẠI DỰ ÁN]],Tham_số[LOẠI DỰ ÁN],0),MATCH(Chi_tiết_dự_án[[#Headers],[NGƯỜI QUẢN LÝ CHIẾN LƯỢC]],Tham_số[#Headers],0))*INDEX('THAM SỐ CỦA DỰ ÁN'!$B$12:$H$12,1,MATCH(Chi_tiết_dự_án[[#Headers],[NGƯỜI QUẢN LÝ CHIẾN LƯỢC]],Tham_số[#Headers],0))*Chi_tiết_dự_án[[#This Row],[CÔNG VIỆC ƯỚC TÍNH]]","v":{"v":18000,"d":"18,000 ₫"}},{"$f":"INDEX(Tham_số[],MATCH(Chi_tiết_dự_án[[#This Row],[LOẠI DỰ ÁN]],Tham_số[LOẠI DỰ ÁN],0),MATCH(Chi_tiết_dự_án[[#Headers],[CHUYÊN GIA THIẾT KẾ]],Tham_số[#Headers],0))*INDEX('THAM SỐ CỦA DỰ ÁN'!$B$12:$H$12,1,MATCH(Chi_tiết_dự_án[[#Headers],[CHUYÊN GIA THIẾT KẾ]],Tham_số[#Headers],0))*Chi_tiết_dự_án[[#This Row],[CÔNG VIỆC ƯỚC TÍNH]]","v":{"v":0,"d":"0 ₫"}},{"$f":"INDEX(Tham_số[],MATCH(Chi_tiết_dự_án[[#This Row],[LOẠI DỰ ÁN]],Tham_số[LOẠI DỰ ÁN],0),MATCH(Chi_tiết_dự_án[[#Headers],[NHÂN VIÊN SỰ KIỆN]],Tham_số[#Headers],0))*INDEX('THAM SỐ CỦA DỰ ÁN'!$B$12:$H$12,1,MATCH(Chi_tiết_dự_án[[#Headers],[NHÂN VIÊN SỰ KIỆN]],Tham_số[#Headers],0))*Chi_tiết_dự_án[[#This Row],[CÔNG VIỆC ƯỚC TÍNH]]","v":{"v":0,"d":"0 ₫"}},{"$f":"INDEX(Tham_số[],MATCH(Chi_tiết_dự_án[[#This Row],[LOẠI DỰ ÁN]],Tham_số[LOẠI DỰ ÁN],0),MATCH(Chi_tiết_dự_án[[#Headers],[NHÂN VIÊN QUẢN TRỊ]],Tham_số[#Headers],0))*INDEX('THAM SỐ CỦA DỰ ÁN'!$B$12:$H$12,1,MATCH(Chi_tiết_dự_án[[#Headers],[NHÂN VIÊN QUẢN TRỊ]],Tham_số[#Headers],0))*Chi_tiết_dự_án[[#This Row],[CÔNG VIỆC ƯỚC TÍNH]]","v":{"v":1200,"d":"1,200 ₫"}},{"$f":"INDEX(Tham_số[],MATCH(Chi_tiết_dự_án[[#This Row],[LOẠI DỰ ÁN]],Tham_số[LOẠI DỰ ÁN],0),MATCH(Chi_tiết_dự_án[[#Headers],[NGƯỜI QUẢN LÝ TÀI KHOẢN]],Tham_số[#Headers],0))*INDEX('THAM SỐ CỦA DỰ ÁN'!$B$12:$H$12,1,MATCH(Chi_tiết_dự_án[[#Headers],[NGƯỜI QUẢN LÝ TÀI KHOẢN]],Tham_số[#Headers],0))*Chi_tiết_dự_án[[#This Row],[CÔNG VIỆC THỰC TẾ]]","v":{"v":7920,"d":"7,920 ₫"}},{"$f":"INDEX(Tham_số[],MATCH(Chi_tiết_dự_án[[#This Row],[LOẠI DỰ ÁN]],Tham_số[LOẠI DỰ ÁN],0),MATCH(Chi_tiết_dự_án[[#Headers],[NGƯỜI QUẢN LÝ DỰ ÁN]],Tham_số[#Headers],0))*INDEX('THAM SỐ CỦA DỰ ÁN'!$B$12:$H$12,1,MATCH(Chi_tiết_dự_án[[#Headers],[NGƯỜI QUẢN LÝ DỰ ÁN]],Tham_số[#Headers],0))*Chi_tiết_dự_án[[#This Row],[CÔNG VIỆC THỰC TẾ]]","v":{"v":2640,"d":"2,640 ₫"}},{"$f":"INDEX(Tham_số[],MATCH(Chi_tiết_dự_án[[#This Row],[LOẠI DỰ ÁN]],Tham_số[LOẠI DỰ ÁN],0),MATCH(Chi_tiết_dự_án[[#Headers],[NGƯỜI QUẢN LÝ CHIẾN LƯỢC]],Tham_số[#Headers],0))*INDEX('THAM SỐ CỦA DỰ ÁN'!$B$12:$H$12,1,MATCH(Chi_tiết_dự_án[[#Headers],[NGƯỜI QUẢN LÝ CHIẾN LƯỢC]],Tham_số[#Headers],0))*Chi_tiết_dự_án[[#This Row],[CÔNG VIỆC THỰC TẾ]]","v":{"v":19800,"d":"19,800 ₫"}},{"$f":"INDEX(Tham_số[],MATCH(Chi_tiết_dự_án[[#This Row],[LOẠI DỰ ÁN]],Tham_số[LOẠI DỰ ÁN],0),MATCH(Chi_tiết_dự_án[[#Headers],[CHUYÊN GIA THIẾT KẾ]],Tham_số[#Headers],0))*INDEX('THAM SỐ CỦA DỰ ÁN'!$B$12:$H$12,1,MATCH(Chi_tiết_dự_án[[#Headers],[CHUYÊN GIA THIẾT KẾ]],Tham_số[#Headers],0))*Chi_tiết_dự_án[[#This Row],[CÔNG VIỆC THỰC TẾ]]","v":{"v":0,"d":"0 ₫"}},{"$f":"INDEX(Tham_số[],MATCH(Chi_tiết_dự_án[[#This Row],[LOẠI DỰ ÁN]],Tham_số[LOẠI DỰ ÁN],0),MATCH(Chi_tiết_dự_án[[#Headers],[NHÂN VIÊN SỰ KIỆN]],Tham_số[#Headers],0))*INDEX('THAM SỐ CỦA DỰ ÁN'!$B$12:$H$12,1,MATCH(Chi_tiết_dự_án[[#Headers],[NHÂN VIÊN SỰ KIỆN]],Tham_số[#Headers],0))*Chi_tiết_dự_án[[#This Row],[CÔNG VIỆC THỰC TẾ]]","v":{"v":0,"d":"0 ₫"}},{"$f":"INDEX(Tham_số[],MATCH(Chi_tiết_dự_án[[#This Row],[LOẠI DỰ ÁN]],Tham_số[LOẠI DỰ ÁN],0),MATCH(Chi_tiết_dự_án[[#Headers],[NHÂN VIÊN QUẢN TRỊ]],Tham_số[#Headers],0))*INDEX('THAM SỐ CỦA DỰ ÁN'!$B$12:$H$12,1,MATCH(Chi_tiết_dự_án[[#Headers],[NHÂN VIÊN QUẢN TRỊ]],Tham_số[#Headers],0))*Chi_tiết_dự_án[[#This Row],[CÔNG VIỆC THỰC TẾ]]","v":{"v":1320,"d":"1,320 ₫"}}]
[null,"Dự án 2","Lập kế hoạch sự kiện",{"$f":"DATE(YEAR(TODAY())+1,6,25)","v":"2023-06-25"},{"$f":"DATE(YEAR(TODAY())+1,7,27)","v":"2023-07-27"},{"$f":"DATE(YEAR(TODAY()),7,15)","v":"2022-07-15"},{"$f":"DATE(YEAR(TODAY())+1,8,25)","v":"2023-08-25"},400,390,{"$f":"DAYS360(Chi_tiết_dự_án[[#This Row],[NGÀY BẮT ĐẦU ƯỚC TÍNH]],Chi_tiết_dự_án[[#This Row],[NGÀY KẾT THÚC ƯỚC TÍNH]],FALSE)","v":32},{"$f":"DAYS360(Chi_tiết_dự_án[[#This Row],[NGÀY BẮT ĐẦU THỰC TẾ]],Chi_tiết_dự_án[[#This Row],[NGÀY KẾT THÚC THỰC TẾ]],FALSE)","v":400},{"$f":"INDEX(Tham_số[],MATCH(Chi_tiết_dự_án[[#This Row],[LOẠI DỰ ÁN]],Tham_số[LOẠI DỰ ÁN],0),MATCH(Chi_tiết_dự_án[[#Headers],[NGƯỜI QUẢN LÝ TÀI KHOẢN]],Tham_số[#Headers],0))*INDEX('THAM SỐ CỦA DỰ ÁN'!$B$12:$H$12,1,MATCH(Chi_tiết_dự_án[[#Headers],[NGƯỜI QUẢN LÝ TÀI KHOẢN]],Tham_số[#Headers],0))*Chi_tiết_dự_án[[#This Row],[CÔNG VIỆC ƯỚC TÍNH]]","v":{"v":14400,"d":"14,400 ₫"}},{"$f":"INDEX(Tham_số[],MATCH(Chi_tiết_dự_án[[#This Row],[LOẠI DỰ ÁN]],Tham_số[LOẠI DỰ ÁN],0),MATCH(Chi_tiết_dự_án[[#Headers],[NGƯỜI QUẢN LÝ DỰ ÁN]],Tham_số[#Headers],0))*INDEX('THAM SỐ CỦA DỰ ÁN'!$B$12:$H$12,1,MATCH(Chi_tiết_dự_án[[#Headers],[NGƯỜI QUẢN LÝ DỰ ÁN]],Tham_số[#Headers],0))*Chi_tiết_dự_án[[#This Row],[CÔNG VIỆC ƯỚC TÍNH]]","v":{"v":24000,"d":"24,000 ₫"}},{"$f":"INDEX(Tham_số[],MATCH(Chi_tiết_dự_án[[#This Row],[LOẠI DỰ ÁN]],Tham_số[LOẠI DỰ ÁN],0),MATCH(Chi_tiết_dự_án[[#Headers],[NGƯỜI QUẢN LÝ CHIẾN LƯỢC]],Tham_số[#Headers],0))*INDEX('THAM SỐ CỦA DỰ ÁN'!$B$12:$H$12,1,MATCH(Chi_tiết_dự_án[[#Headers],[NGƯỜI QUẢN LÝ CHIẾN LƯỢC]],Tham_số[#Headers],0))*Chi_tiết_dự_án[[#This Row],[CÔNG VIỆC ƯỚC TÍNH]]","v":{"v":6000,"d":"6,000 ₫"}},{"$f":"INDEX(Tham_số[],MATCH(Chi_tiết_dự_án[[#This Row],[LOẠI DỰ ÁN]],Tham_số[LOẠI DỰ ÁN],0),MATCH(Chi_tiết_dự_án[[#Headers],[CHUYÊN GIA THIẾT KẾ]],Tham_số[#Headers],0))*INDEX('THAM SỐ CỦA DỰ ÁN'!$B$12:$H$12,1,MATCH(Chi_tiết_dự_án[[#Headers],[CHUYÊN GIA THIẾT KẾ]],Tham_số[#Headers],0))*Chi_tiết_dự_án[[#This Row],[CÔNG VIỆC ƯỚC TÍNH]]","v":{"v":4000,"d":"4,000 ₫"}},{"$f":"INDEX(Tham_số[],MATCH(Chi_tiết_dự_án[[#This Row],[LOẠI DỰ ÁN]],Tham_số[LOẠI DỰ ÁN],0),MATCH(Chi_tiết_dự_án[[#Headers],[NHÂN VIÊN SỰ KIỆN]],Tham_số[#Headers],0))*INDEX('THAM SỐ CỦA DỰ ÁN'!$B$12:$H$12,1,MATCH(Chi_tiết_dự_án[[#Headers],[NHÂN VIÊN SỰ KIỆN]],Tham_số[#Headers],0))*Chi_tiết_dự_án[[#This Row],[CÔNG VIỆC ƯỚC TÍNH]]","v":{"v":0,"d":"0 ₫"}},{"$f":"INDEX(Tham_số[],MATCH(Chi_tiết_dự_án[[#This Row],[LOẠI DỰ ÁN]],Tham_số[LOẠI DỰ ÁN],0),MATCH(Chi_tiết_dự_án[[#Headers],[NHÂN VIÊN QUẢN TRỊ]],Tham_số[#Headers],0))*INDEX('THAM SỐ CỦA DỰ ÁN'!$B$12:$H$12,1,MATCH(Chi_tiết_dự_án[[#Headers],[NHÂN VIÊN QUẢN TRỊ]],Tham_số[#Headers],0))*Chi_tiết_dự_án[[#This Row],[CÔNG VIỆC ƯỚC TÍNH]]","v":{"v":2400,"d":"2,400 ₫"}},{"$f":"INDEX(Tham_số[],MATCH(Chi_tiết_dự_án[[#This Row],[LOẠI DỰ ÁN]],Tham_số[LOẠI DỰ ÁN],0),MATCH(Chi_tiết_dự_án[[#Headers],[NGƯỜI QUẢN LÝ TÀI KHOẢN]],Tham_số[#Headers],0))*INDEX('THAM SỐ CỦA DỰ ÁN'!$B$12:$H$12,1,MATCH(Chi_tiết_dự_án[[#Headers],[NGƯỜI QUẢN LÝ TÀI KHOẢN]],Tham_số[#Headers],0))*Chi_tiết_dự_án[[#This Row],[CÔNG VIỆC THỰC TẾ]]","v":{"v":14040,"d":"14,040 ₫"}},{"$f":"INDEX(Tham_số[],MATCH(Chi_tiết_dự_án[[#This Row],[LOẠI DỰ ÁN]],Tham_số[LOẠI DỰ ÁN],0),MATCH(Chi_tiết_dự_án[[#Headers],[NGƯỜI QUẢN LÝ DỰ ÁN]],Tham_số[#Headers],0))*INDEX('THAM SỐ CỦA DỰ ÁN'!$B$12:$H$12,1,MATCH(Chi_tiết_dự_án[[#Headers],[NGƯỜI QUẢN LÝ DỰ ÁN]],Tham_số[#Headers],0))*Chi_tiết_dự_án[[#This Row],[CÔNG VIỆC THỰC TẾ]]","v":{"v":23400,"d":"23,400 ₫"}},{"$f":"INDEX(Tham_số[],MATCH(Chi_tiết_dự_án[[#This Row],[LOẠI DỰ ÁN]],Tham_số[LOẠI DỰ ÁN],0),MATCH(Chi_tiết_dự_án[[#Headers],[NGƯỜI QUẢN LÝ CHIẾN LƯỢC]],Tham_số[#Headers],0))*INDEX('THAM SỐ CỦA DỰ ÁN'!$B$12:$H$12,1,MATCH(Chi_tiết_dự_án[[#Headers],[NGƯỜI QUẢN LÝ CHIẾN LƯỢC]],Tham_số[#Headers],0))*Chi_tiết_dự_án[[#This Row],[CÔNG VIỆC THỰC TẾ]]","v":{"v":5850,"d":"5,850 ₫"}},{"$f":"INDEX(Tham_số[],MATCH(Chi_tiết_dự_án[[#This Row],[LOẠI DỰ ÁN]],Tham_số[LOẠI DỰ ÁN],0),MATCH(Chi_tiết_dự_án[[#Headers],[CHUYÊN GIA THIẾT KẾ]],Tham_số[#Headers],0))*INDEX('THAM SỐ CỦA DỰ ÁN'!$B$12:$H$12,1,MATCH(Chi_tiết_dự_án[[#Headers],[CHUYÊN GIA THIẾT KẾ]],Tham_số[#Headers],0))*Chi_tiết_dự_án[[#This Row],[CÔNG VIỆC THỰC TẾ]]","v":{"v":3900,"d":"3,900 ₫"}},{"$f":"INDEX(Tham_số[],MATCH(Chi_tiết_dự_án[[#This Row],[LOẠI DỰ ÁN]],Tham_số[LOẠI DỰ ÁN],0),MATCH(Chi_tiết_dự_án[[#Headers],[NHÂN VIÊN SỰ KIỆN]],Tham_số[#Headers],0))*INDEX('THAM SỐ CỦA DỰ ÁN'!$B$12:$H$12,1,MATCH(Chi_tiết_dự_án[[#Headers],[NHÂN VIÊN SỰ KIỆN]],Tham_số[#Headers],0))*Chi_tiết_dự_án[[#This Row],[CÔNG VIỆC THỰC TẾ]]","v":{"v":0,"d":"0 ₫"}},{"$f":"INDEX(Tham_số[],MATCH(Chi_tiết_dự_án[[#This Row],[LOẠI DỰ ÁN]],Tham_số[LOẠI DỰ ÁN],0),MATCH(Chi_tiết_dự_án[[#Headers],[NHÂN VIÊN QUẢN TRỊ]],Tham_số[#Headers],0))*INDEX('THAM SỐ CỦA DỰ ÁN'!$B$12:$H$12,1,MATCH(Chi_tiết_dự_án[[#Headers],[NHÂN VIÊN QUẢN TRỊ]],Tham_số[#Headers],0))*Chi_tiết_dự_án[[#This Row],[CÔNG VIỆC THỰC TẾ]]","v":{"v":2340,"d":"2,340 ₫"}}]
[null,"Dự án 3","Thiết kế sự kiện",{"$f":"DATE(YEAR(TODAY())+2,7,12)","v":"2024-07-12"},{"$f":"DATE(YEAR(TODAY())+2,9,19)","v":"2024-09-19"},"2025-08-07","2025-10-10",500,500,{"$f":"DAYS360(Chi_tiết_dự_án[[#This Row],[NGÀY BẮT ĐẦU ƯỚC TÍNH]],Chi_tiết_dự_án[[#This Row],[NGÀY KẾT THÚC ƯỚC TÍNH]],FALSE)","v":67},{"$f":"DAYS360(Chi_tiết_dự_án[[#This Row],[NGÀY BẮT ĐẦU THỰC TẾ]],Chi_tiết_dự_án[[#This Row],[NGÀY KẾT THÚC THỰC TẾ]],FALSE)","v":63},{"$f":"INDEX(Tham_số[],MATCH(Chi_tiết_dự_án[[#This Row],[LOẠI DỰ ÁN]],Tham_số[LOẠI DỰ ÁN],0),MATCH(Chi_tiết_dự_án[[#Headers],[NGƯỜI QUẢN LÝ TÀI KHOẢN]],Tham_số[#Headers],0))*INDEX('THAM SỐ CỦA DỰ ÁN'!$B$12:$H$12,1,MATCH(Chi_tiết_dự_án[[#Headers],[NGƯỜI QUẢN LÝ TÀI KHOẢN]],Tham_số[#Headers],0))*Chi_tiết_dự_án[[#This Row],[CÔNG VIỆC ƯỚC TÍNH]]","v":{"v":18000,"d":"18,000 ₫"}},{"$f":"INDEX(Tham_số[],MATCH(Chi_tiết_dự_án[[#This Row],[LOẠI DỰ ÁN]],Tham_số[LOẠI DỰ ÁN],0),MATCH(Chi_tiết_dự_án[[#Headers],[NGƯỜI QUẢN LÝ DỰ ÁN]],Tham_số[#Headers],0))*INDEX('THAM SỐ CỦA DỰ ÁN'!$B$12:$H$12,1,MATCH(Chi_tiết_dự_án[[#Headers],[NGƯỜI QUẢN LÝ DỰ ÁN]],Tham_số[#Headers],0))*Chi_tiết_dự_án[[#This Row],[CÔNG VIỆC ƯỚC TÍNH]]","v":{"v":12000,"d":"12,000 ₫"}},{"$f":"INDEX(Tham_số[],MATCH(Chi_tiết_dự_án[[#This Row],[LOẠI DỰ ÁN]],Tham_số[LOẠI DỰ ÁN],0),MATCH(Chi_tiết_dự_án[[#Headers],[NGƯỜI QUẢN LÝ CHIẾN LƯỢC]],Tham_số[#Headers],0))*INDEX('THAM SỐ CỦA DỰ ÁN'!$B$12:$H$12,1,MATCH(Chi_tiết_dự_án[[#Headers],[NGƯỜI QUẢN LÝ CHIẾN LƯỢC]],Tham_số[#Headers],0))*Chi_tiết_dự_án[[#This Row],[CÔNG VIỆC ƯỚC TÍNH]]","v":{"v":0,"d":"0 ₫"}},{"$f":"INDEX(Tham_số[],MATCH(Chi_tiết_dự_án[[#This Row],[LOẠI DỰ ÁN]],Tham_số[LOẠI DỰ ÁN],0),MATCH(Chi_tiết_dự_án[[#Headers],[CHUYÊN GIA THIẾT KẾ]],Tham_số[#Headers],0))*INDEX('THAM SỐ CỦA DỰ ÁN'!$B$12:$H$12,1,MATCH(Chi_tiết_dự_án[[#Headers],[CHUYÊN GIA THIẾT KẾ]],Tham_số[#Headers],0))*Chi_tiết_dự_án[[#This Row],[CÔNG VIỆC ƯỚC TÍNH]]","v":{"v":25000,"d":"25,000 ₫"}},{"$f":"INDEX(Tham_số[],MATCH(Chi_tiết_dự_án[[#This Row],[LOẠI DỰ ÁN]],Tham_số[LOẠI DỰ ÁN],0),MATCH(Chi_tiết_dự_án[[#Headers],[NHÂN VIÊN SỰ KIỆN]],Tham_số[#Headers],0))*INDEX('THAM SỐ CỦA DỰ ÁN'!$B$12:$H$12,1,MATCH(Chi_tiết_dự_án[[#Headers],[NHÂN VIÊN SỰ KIỆN]],Tham_số[#Headers],0))*Chi_tiết_dự_án[[#This Row],[CÔNG VIỆC ƯỚC TÍNH]]","v":{"v":0,"d":"0 ₫"}},{"$f":"INDEX(Tham_số[],MATCH(Chi_tiết_dự_án[[#This Row],[LOẠI DỰ ÁN]],Tham_số[LOẠI DỰ ÁN],0),MATCH(Chi_tiết_dự_án[[#Headers],[NHÂN VIÊN QUẢN TRỊ]],Tham_số[#Headers],0))*INDEX('THAM SỐ CỦA DỰ ÁN'!$B$12:$H$12,1,MATCH(Chi_tiết_dự_án[[#Headers],[NHÂN VIÊN QUẢN TRỊ]],Tham_số[#Headers],0))*Chi_tiết_dự_án[[#This Row],[CÔNG VIỆC ƯỚC TÍNH]]","v":{"v":3000,"d":"3,000 ₫"}},{"$f":"INDEX(Tham_số[],MATCH(Chi_tiết_dự_án[[#This Row],[LOẠI DỰ ÁN]],Tham_số[LOẠI DỰ ÁN],0),MATCH(Chi_tiết_dự_án[[#Headers],[NGƯỜI QUẢN LÝ TÀI KHOẢN]],Tham_số[#Headers],0))*INDEX('THAM SỐ CỦA DỰ ÁN'!$B$12:$H$12,1,MATCH(Chi_tiết_dự_án[[#Headers],[NGƯỜI QUẢN LÝ TÀI KHOẢN]],Tham_số[#Headers],0))*Chi_tiết_dự_án[[#This Row],[CÔNG VIỆC THỰC TẾ]]","v":{"v":18000,"d":"18,000 ₫"}},{"$f":"INDEX(Tham_số[],MATCH(Chi_tiết_dự_án[[#This Row],[LOẠI DỰ ÁN]],Tham_số[LOẠI DỰ ÁN],0),MATCH(Chi_tiết_dự_án[[#Headers],[NGƯỜI QUẢN LÝ DỰ ÁN]],Tham_số[#Headers],0))*INDEX('THAM SỐ CỦA DỰ ÁN'!$B$12:$H$12,1,MATCH(Chi_tiết_dự_án[[#Headers],[NGƯỜI QUẢN LÝ DỰ ÁN]],Tham_số[#Headers],0))*Chi_tiết_dự_án[[#This Row],[CÔNG VIỆC THỰC TẾ]]","v":{"v":12000,"d":"12,000 ₫"}},{"$f":"INDEX(Tham_số[],MATCH(Chi_tiết_dự_án[[#This Row],[LOẠI DỰ ÁN]],Tham_số[LOẠI DỰ ÁN],0),MATCH(Chi_tiết_dự_án[[#Headers],[NGƯỜI QUẢN LÝ CHIẾN LƯỢC]],Tham_số[#Headers],0))*INDEX('THAM SỐ CỦA DỰ ÁN'!$B$12:$H$12,1,MATCH(Chi_tiết_dự_án[[#Headers],[NGƯỜI QUẢN LÝ CHIẾN LƯỢC]],Tham_số[#Headers],0))*Chi_tiết_dự_án[[#This Row],[CÔNG VIỆC THỰC TẾ]]","v":{"v":0,"d":"0 ₫"}},{"$f":"INDEX(Tham_số[],MATCH(Chi_tiết_dự_án[[#This Row],[LOẠI DỰ ÁN]],Tham_số[LOẠI DỰ ÁN],0),MATCH(Chi_tiết_dự_án[[#Headers],[CHUYÊN GIA THIẾT KẾ]],Tham_số[#Headers],0))*INDEX('THAM SỐ CỦA DỰ ÁN'!$B$12:$H$12,1,MATCH(Chi_tiết_dự_án[[#Headers],[CHUYÊN GIA THIẾT KẾ]],Tham_số[#Headers],0))*Chi_tiết_dự_án[[#This Row],[CÔNG VIỆC THỰC TẾ]]","v":{"v":25000,"d":"25,000 ₫"}},{"$f":"INDEX(Tham_số[],MATCH(Chi_tiết_dự_án[[#This Row],[LOẠI DỰ ÁN]],Tham_số[LOẠI DỰ ÁN],0),MATCH(Chi_tiết_dự_án[[#Headers],[NHÂN VIÊN SỰ KIỆN]],Tham_số[#Headers],0))*INDEX('THAM SỐ CỦA DỰ ÁN'!$B$12:$H$12,1,MATCH(Chi_tiết_dự_án[[#Headers],[NHÂN VIÊN SỰ KIỆN]],Tham_số[#Headers],0))*Chi_tiết_dự_án[[#This Row],[CÔNG VIỆC THỰC TẾ]]","v":{"v":0,"d":"0 ₫"}},{"$f":"INDEX(Tham_số[],MATCH(Chi_tiết_dự_án[[#This Row],[LOẠI DỰ ÁN]],Tham_số[LOẠI DỰ ÁN],0),MATCH(Chi_tiết_dự_án[[#Headers],[NHÂN VIÊN QUẢN TRỊ]],Tham_số[#Headers],0))*INDEX('THAM SỐ CỦA DỰ ÁN'!$B$12:$H$12,1,MATCH(Chi_tiết_dự_án[[#Headers],[NHÂN VIÊN QUẢN TRỊ]],Tham_số[#Headers],0))*Chi_tiết_dự_án[[#This Row],[CÔNG VIỆC THỰC TẾ]]","v":{"v":3000,"d":"3,000 ₫"}}]
[null,"Dự án 4","Dịch vụ hậu cần cho sự kiện",{"$f":"DATE(YEAR(TODAY())+3,7,30)","v":"2025-07-30"},{"$f":"DATE(YEAR(TODAY())+3,9,28)","v":"2025-09-28"},{"$f":"DATE(YEAR(TODAY())+3,9,14)","v":"2025-09-14"},{"$f":"DATE(YEAR(TODAY())+3,11,13)","v":"2025-11-13"},150,145,{"$f":"DAYS360(Chi_tiết_dự_án[[#This Row],[NGÀY BẮT ĐẦU ƯỚC TÍNH]],Chi_tiết_dự_án[[#This Row],[NGÀY KẾT THÚC ƯỚC TÍNH]],FALSE)","v":58},{"$f":"DAYS360(Chi_tiết_dự_án[[#This Row],[NGÀY BẮT ĐẦU THỰC TẾ]],Chi_tiết_dự_án[[#This Row],[NGÀY KẾT THÚC THỰC TẾ]],FALSE)","v":59},{"$f":"INDEX(Tham_số[],MATCH(Chi_tiết_dự_án[[#This Row],[LOẠI DỰ ÁN]],Tham_số[LOẠI DỰ ÁN],0),MATCH(Chi_tiết_dự_án[[#Headers],[NGƯỜI QUẢN LÝ TÀI KHOẢN]],Tham_số[#Headers],0))*INDEX('THAM SỐ CỦA DỰ ÁN'!$B$12:$H$12,1,MATCH(Chi_tiết_dự_án[[#Headers],[NGƯỜI QUẢN LÝ TÀI KHOẢN]],Tham_số[#Headers],0))*Chi_tiết_dự_án[[#This Row],[CÔNG VIỆC ƯỚC TÍNH]]","v":{"v":5400,"d":"5,400 ₫"}},{"$f":"INDEX(Tham_số[],MATCH(Chi_tiết_dự_án[[#This Row],[LOẠI DỰ ÁN]],Tham_số[LOẠI DỰ ÁN],0),MATCH(Chi_tiết_dự_án[[#Headers],[NGƯỜI QUẢN LÝ DỰ ÁN]],Tham_số[#Headers],0))*INDEX('THAM SỐ CỦA DỰ ÁN'!$B$12:$H$12,1,MATCH(Chi_tiết_dự_án[[#Headers],[NGƯỜI QUẢN LÝ DỰ ÁN]],Tham_số[#Headers],0))*Chi_tiết_dự_án[[#This Row],[CÔNG VIỆC ƯỚC TÍNH]]","v":{"v":10800,"d":"10,800 ₫"}},{"$f":"INDEX(Tham_số[],MATCH(Chi_tiết_dự_án[[#This Row],[LOẠI DỰ ÁN]],Tham_số[LOẠI DỰ ÁN],0),MATCH(Chi_tiết_dự_án[[#Headers],[NGƯỜI QUẢN LÝ CHIẾN LƯỢC]],Tham_số[#Headers],0))*INDEX('THAM SỐ CỦA DỰ ÁN'!$B$12:$H$12,1,MATCH(Chi_tiết_dự_án[[#Headers],[NGƯỜI QUẢN LÝ CHIẾN LƯỢC]],Tham_số[#Headers],0))*Chi_tiết_dự_án[[#This Row],[CÔNG VIỆC ƯỚC TÍNH]]","v":{"v":0,"d":"0 ₫"}},{"$f":"INDEX(Tham_số[],MATCH(Chi_tiết_dự_án[[#This Row],[LOẠI DỰ ÁN]],Tham_số[LOẠI DỰ ÁN],0),MATCH(Chi_tiết_dự_án[[#Headers],[CHUYÊN GIA THIẾT KẾ]],Tham_số[#Headers],0))*INDEX('THAM SỐ CỦA DỰ ÁN'!$B$12:$H$12,1,MATCH(Chi_tiết_dự_án[[#Headers],[CHUYÊN GIA THIẾT KẾ]],Tham_số[#Headers],0))*Chi_tiết_dự_án[[#This Row],[CÔNG VIỆC ƯỚC TÍNH]]","v":{"v":0,"d":"0 ₫"}},{"$f":"INDEX(Tham_số[],MATCH(Chi_tiết_dự_án[[#This Row],[LOẠI DỰ ÁN]],Tham_số[LOẠI DỰ ÁN],0),MATCH(Chi_tiết_dự_án[[#Headers],[NHÂN VIÊN SỰ KIỆN]],Tham_số[#Headers],0))*INDEX('THAM SỐ CỦA DỰ ÁN'!$B$12:$H$12,1,MATCH(Chi_tiết_dự_án[[#Headers],[NHÂN VIÊN SỰ KIỆN]],Tham_số[#Headers],0))*Chi_tiết_dự_án[[#This Row],[CÔNG VIỆC ƯỚC TÍNH]]","v":{"v":1200,"d":"1,200 ₫"}},{"$f":"INDEX(Tham_số[],MATCH(Chi_tiết_dự_án[[#This Row],[LOẠI DỰ ÁN]],Tham_số[LOẠI DỰ ÁN],0),MATCH(Chi_tiết_dự_án[[#Headers],[NHÂN VIÊN QUẢN TRỊ]],Tham_số[#Headers],0))*INDEX('THAM SỐ CỦA DỰ ÁN'!$B$12:$H$12,1,MATCH(Chi_tiết_dự_án[[#Headers],[NHÂN VIÊN QUẢN TRỊ]],Tham_số[#Headers],0))*Chi_tiết_dự_án[[#This Row],[CÔNG VIỆC ƯỚC TÍNH]]","v":{"v":900,"d":"900 ₫"}},{"$f":"INDEX(Tham_số[],MATCH(Chi_tiết_dự_án[[#This Row],[LOẠI DỰ ÁN]],Tham_số[LOẠI DỰ ÁN],0),MATCH(Chi_tiết_dự_án[[#Headers],[NGƯỜI QUẢN LÝ TÀI KHOẢN]],Tham_số[#Headers],0))*INDEX('THAM SỐ CỦA DỰ ÁN'!$B$12:$H$12,1,MATCH(Chi_tiết_dự_án[[#Headers],[NGƯỜI QUẢN LÝ TÀI KHOẢN]],Tham_số[#Headers],0))*Chi_tiết_dự_án[[#This Row],[CÔNG VIỆC THỰC TẾ]]","v":{"v":5220,"d":"5,220 ₫"}},{"$f":"INDEX(Tham_số[],MATCH(Chi_tiết_dự_án[[#This Row],[LOẠI DỰ ÁN]],Tham_số[LOẠI DỰ ÁN],0),MATCH(Chi_tiết_dự_án[[#Headers],[NGƯỜI QUẢN LÝ DỰ ÁN]],Tham_số[#Headers],0))*INDEX('THAM SỐ CỦA DỰ ÁN'!$B$12:$H$12,1,MATCH(Chi_tiết_dự_án[[#Headers],[NGƯỜI QUẢN LÝ DỰ ÁN]],Tham_số[#Headers],0))*Chi_tiết_dự_án[[#This Row],[CÔNG VIỆC THỰC TẾ]]","v":{"v":10440,"d":"10,440 ₫"}},{"$f":"INDEX(Tham_số[],MATCH(Chi_tiết_dự_án[[#This Row],[LOẠI DỰ ÁN]],Tham_số[LOẠI DỰ ÁN],0),MATCH(Chi_tiết_dự_án[[#Headers],[NGƯỜI QUẢN LÝ CHIẾN LƯỢC]],Tham_số[#Headers],0))*INDEX('THAM SỐ CỦA DỰ ÁN'!$B$12:$H$12,1,MATCH(Chi_tiết_dự_án[[#Headers],[NGƯỜI QUẢN LÝ CHIẾN LƯỢC]],Tham_số[#Headers],0))*Chi_tiết_dự_án[[#This Row],[CÔNG VIỆC THỰC TẾ]]","v":{"v":0,"d":"0 ₫"}},{"$f":"INDEX(Tham_số[],MATCH(Chi_tiết_dự_án[[#This Row],[LOẠI DỰ ÁN]],Tham_số[LOẠI DỰ ÁN],0),MATCH(Chi_tiết_dự_án[[#Headers],[CHUYÊN GIA THIẾT KẾ]],Tham_số[#Headers],0))*INDEX('THAM SỐ CỦA DỰ ÁN'!$B$12:$H$12,1,MATCH(Chi_tiết_dự_án[[#Headers],[CHUYÊN GIA THIẾT KẾ]],Tham_số[#Headers],0))*Chi_tiết_dự_án[[#This Row],[CÔNG VIỆC THỰC TẾ]]","v":{"v":0,"d":"0 ₫"}},{"$f":"INDEX(Tham_số[],MATCH(Chi_tiết_dự_án[[#This Row],[LOẠI DỰ ÁN]],Tham_số[LOẠI DỰ ÁN],0),MATCH(Chi_tiết_dự_án[[#Headers],[NHÂN VIÊN SỰ KIỆN]],Tham_số[#Headers],0))*INDEX('THAM SỐ CỦA DỰ ÁN'!$B$12:$H$12,1,MATCH(Chi_tiết_dự_án[[#Headers],[NHÂN VIÊN SỰ KIỆN]],Tham_số[#Headers],0))*Chi_tiết_dự_án[[#This Row],[CÔNG VIỆC THỰC TẾ]]","v":{"v":1160,"d":"1,160 ₫"}},{"$f":"INDEX(Tham_số[],MATCH(Chi_tiết_dự_án[[#This Row],[LOẠI DỰ ÁN]],Tham_số[LOẠI DỰ ÁN],0),MATCH(Chi_tiết_dự_án[[#Headers],[NHÂN VIÊN QUẢN TRỊ]],Tham_số[#Headers],0))*INDEX('THAM SỐ CỦA DỰ ÁN'!$B$12:$H$12,1,MATCH(Chi_tiết_dự_án[[#Headers],[NHÂN VIÊN QUẢN TRỊ]],Tham_số[#Headers],0))*Chi_tiết_dự_án[[#This Row],[CÔNG VIỆC THỰC TẾ]]","v":{"v":870,"d":"870 ₫"}}]
[null,"Dự án 5","Cung cấp nhân viên cho sự kiện",{"$f":"DATE(YEAR(TODAY())+4,8,11)","v":"2026-08-11"},{"$f":"DATE(YEAR(TODAY())+4,8,21)","v":"2026-08-21"},{"$f":"DATE(YEAR(TODAY())+4,9,14)","v":"2026-09-14"},{"$f":"DATE(YEAR(TODAY())+4,9,25)","v":"2026-09-25"},250,255,{"$f":"DAYS360(Chi_tiết_dự_án[[#This Row],[NGÀY BẮT ĐẦU ƯỚC TÍNH]],Chi_tiết_dự_án[[#This Row],[NGÀY KẾT THÚC ƯỚC TÍNH]],FALSE)","v":10},{"$f":"DAYS360(Chi_tiết_dự_án[[#This Row],[NGÀY BẮT ĐẦU THỰC TẾ]],Chi_tiết_dự_án[[#This Row],[NGÀY KẾT THÚC THỰC TẾ]],FALSE)","v":11},{"$f":"INDEX(Tham_số[],MATCH(Chi_tiết_dự_án[[#This Row],[LOẠI DỰ ÁN]],Tham_số[LOẠI DỰ ÁN],0),MATCH(Chi_tiết_dự_án[[#Headers],[NGƯỜI QUẢN LÝ TÀI KHOẢN]],Tham_số[#Headers],0))*INDEX('THAM SỐ CỦA DỰ ÁN'!$B$12:$H$12,1,MATCH(Chi_tiết_dự_án[[#Headers],[NGƯỜI QUẢN LÝ TÀI KHOẢN]],Tham_số[#Headers],0))*Chi_tiết_dự_án[[#This Row],[CÔNG VIỆC ƯỚC TÍNH]]","v":{"v":9000,"d":"9,000 ₫"}},{"$f":"INDEX(Tham_số[],MATCH(Chi_tiết_dự_án[[#This Row],[LOẠI DỰ ÁN]],Tham_số[LOẠI DỰ ÁN],0),MATCH(Chi_tiết_dự_án[[#Headers],[NGƯỜI QUẢN LÝ DỰ ÁN]],Tham_số[#Headers],0))*INDEX('THAM SỐ CỦA DỰ ÁN'!$B$12:$H$12,1,MATCH(Chi_tiết_dự_án[[#Headers],[NGƯỜI QUẢN LÝ DỰ ÁN]],Tham_số[#Headers],0))*Chi_tiết_dự_án[[#This Row],[CÔNG VIỆC ƯỚC TÍNH]]","v":{"v":3000,"d":"3,000 ₫"}},{"$f":"INDEX(Tham_số[],MATCH(Chi_tiết_dự_án[[#This Row],[LOẠI DỰ ÁN]],Tham_số[LOẠI DỰ ÁN],0),MATCH(Chi_tiết_dự_án[[#Headers],[NGƯỜI QUẢN LÝ CHIẾN LƯỢC]],Tham_số[#Headers],0))*INDEX('THAM SỐ CỦA DỰ ÁN'!$B$12:$H$12,1,MATCH(Chi_tiết_dự_án[[#Headers],[NGƯỜI QUẢN LÝ CHIẾN LƯỢC]],Tham_số[#Headers],0))*Chi_tiết_dự_án[[#This Row],[CÔNG VIỆC ƯỚC TÍNH]]","v":{"v":0,"d":"0 ₫"}},{"$f":"INDEX(Tham_số[],MATCH(Chi_tiết_dự_án[[#This Row],[LOẠI DỰ ÁN]],Tham_số[LOẠI DỰ ÁN],0),MATCH(Chi_tiết_dự_án[[#Headers],[CHUYÊN GIA THIẾT KẾ]],Tham_số[#Headers],0))*INDEX('THAM SỐ CỦA DỰ ÁN'!$B$12:$H$12,1,MATCH(Chi_tiết_dự_án[[#Headers],[CHUYÊN GIA THIẾT KẾ]],Tham_số[#Headers],0))*Chi_tiết_dự_án[[#This Row],[CÔNG VIỆC ƯỚC TÍNH]]","v":{"v":0,"d":"0 ₫"}},{"$f":"INDEX(Tham_số[],MATCH(Chi_tiết_dự_án[[#This Row],[LOẠI DỰ ÁN]],Tham_số[LOẠI DỰ ÁN],0),MATCH(Chi_tiết_dự_án[[#Headers],[NHÂN VIÊN SỰ KIỆN]],Tham_số[#Headers],0))*INDEX('THAM SỐ CỦA DỰ ÁN'!$B$12:$H$12,1,MATCH(Chi_tiết_dự_án[[#Headers],[NHÂN VIÊN SỰ KIỆN]],Tham_số[#Headers],0))*Chi_tiết_dự_án[[#This Row],[CÔNG VIỆC ƯỚC TÍNH]]","v":{"v":12000,"d":"12,000 ₫"}},{"$f":"INDEX(Tham_số[],MATCH(Chi_tiết_dự_án[[#This Row],[LOẠI DỰ ÁN]],Tham_số[LOẠI DỰ ÁN],0),MATCH(Chi_tiết_dự_án[[#Headers],[NHÂN VIÊN QUẢN TRỊ]],Tham_số[#Headers],0))*INDEX('THAM SỐ CỦA DỰ ÁN'!$B$12:$H$12,1,MATCH(Chi_tiết_dự_án[[#Headers],[NHÂN VIÊN QUẢN TRỊ]],Tham_số[#Headers],0))*Chi_tiết_dự_án[[#This Row],[CÔNG VIỆC ƯỚC TÍNH]]","v":{"v":1500,"d":"1,500 ₫"}},{"$f":"INDEX(Tham_số[],MATCH(Chi_tiết_dự_án[[#This Row],[LOẠI DỰ ÁN]],Tham_số[LOẠI DỰ ÁN],0),MATCH(Chi_tiết_dự_án[[#Headers],[NGƯỜI QUẢN LÝ TÀI KHOẢN]],Tham_số[#Headers],0))*INDEX('THAM SỐ CỦA DỰ ÁN'!$B$12:$H$12,1,MATCH(Chi_tiết_dự_án[[#Headers],[NGƯỜI QUẢN LÝ TÀI KHOẢN]],Tham_số[#Headers],0))*Chi_tiết_dự_án[[#This Row],[CÔNG VIỆC THỰC TẾ]]","v":{"v":9180,"d":"9,180 ₫"}},{"$f":"INDEX(Tham_số[],MATCH(Chi_tiết_dự_án[[#This Row],[LOẠI DỰ ÁN]],Tham_số[LOẠI DỰ ÁN],0),MATCH(Chi_tiết_dự_án[[#Headers],[NGƯỜI QUẢN LÝ DỰ ÁN]],Tham_số[#Headers],0))*INDEX('THAM SỐ CỦA DỰ ÁN'!$B$12:$H$12,1,MATCH(Chi_tiết_dự_án[[#Headers],[NGƯỜI QUẢN LÝ DỰ ÁN]],Tham_số[#Headers],0))*Chi_tiết_dự_án[[#This Row],[CÔNG VIỆC THỰC TẾ]]","v":{"v":3060,"d":"3,060 ₫"}},{"$f":"INDEX(Tham_số[],MATCH(Chi_tiết_dự_án[[#This Row],[LOẠI DỰ ÁN]],Tham_số[LOẠI DỰ ÁN],0),MATCH(Chi_tiết_dự_án[[#Headers],[NGƯỜI QUẢN LÝ CHIẾN LƯỢC]],Tham_số[#Headers],0))*INDEX('THAM SỐ CỦA DỰ ÁN'!$B$12:$H$12,1,MATCH(Chi_tiết_dự_án[[#Headers],[NGƯỜI QUẢN LÝ CHIẾN LƯỢC]],Tham_số[#Headers],0))*Chi_tiết_dự_án[[#This Row],[CÔNG VIỆC THỰC TẾ]]","v":{"v":0,"d":"0 ₫"}},{"$f":"INDEX(Tham_số[],MATCH(Chi_tiết_dự_án[[#This Row],[LOẠI DỰ ÁN]],Tham_số[LOẠI DỰ ÁN],0),MATCH(Chi_tiết_dự_án[[#Headers],[CHUYÊN GIA THIẾT KẾ]],Tham_số[#Headers],0))*INDEX('THAM SỐ CỦA DỰ ÁN'!$B$12:$H$12,1,MATCH(Chi_tiết_dự_án[[#Headers],[CHUYÊN GIA THIẾT KẾ]],Tham_số[#Headers],0))*Chi_tiết_dự_án[[#This Row],[CÔNG VIỆC THỰC TẾ]]","v":{"v":0,"d":"0 ₫"}},{"$f":"INDEX(Tham_số[],MATCH(Chi_tiết_dự_án[[#This Row],[LOẠI DỰ ÁN]],Tham_số[LOẠI DỰ ÁN],0),MATCH(Chi_tiết_dự_án[[#Headers],[NHÂN VIÊN SỰ KIỆN]],Tham_số[#Headers],0))*INDEX('THAM SỐ CỦA DỰ ÁN'!$B$12:$H$12,1,MATCH(Chi_tiết_dự_án[[#Headers],[NHÂN VIÊN SỰ KIỆN]],Tham_số[#Headers],0))*Chi_tiết_dự_án[[#This Row],[CÔNG VIỆC THỰC TẾ]]","v":{"v":12240,"d":"12,240 ₫"}},{"$f":"INDEX(Tham_số[],MATCH(Chi_tiết_dự_án[[#This Row],[LOẠI DỰ ÁN]],Tham_số[LOẠI DỰ ÁN],0),MATCH(Chi_tiết_dự_án[[#Headers],[NHÂN VIÊN QUẢN TRỊ]],Tham_số[#Headers],0))*INDEX('THAM SỐ CỦA DỰ ÁN'!$B$12:$H$12,1,MATCH(Chi_tiết_dự_án[[#Headers],[NHÂN VIÊN QUẢN TRỊ]],Tham_số[#Headers],0))*Chi_tiết_dự_án[[#This Row],[CÔNG VIỆC THỰC TẾ]]","v":{"v":1530,"d":"1,530 ₫"}}]
[null,"TỔNG",{"$nulls":5},{"$f":"SUBTOTAL(109,Chi_tiết_dự_án[CÔNG VIỆC ƯỚC TÍNH])","v":1500},{"$f":"SUBTOTAL(109,Chi_tiết_dự_án[CÔNG VIỆC THỰC TẾ])","v":1510},{"$f":"SUBTOTAL(109,Chi_tiết_dự_án[LƯỢNG THỜI GIAN ƯỚC TÍNH])","v":225},{"$f":"SUBTOTAL(109,Chi_tiết_dự_án[LƯỢNG THỜI GIAN THỰC TẾ])","v":597}]

{"sheet":"TỔNG CỦA DỰ ÁN","index":3,"n_rows":10,"n_cols":14,"rows_kept":10}
[null,{"$f":"'THAM SỐ CỦA DỰ ÁN'!B1","v":"Tên Công ty"}]
[null,"Trình theo dõi dự án quản lý sự kiện"]
[null,{"$f":"'THAM SỐ CỦA DỰ ÁN'!B3","v":"Tên Công ty Bí mật"}]
["PivotTable bắt đầu từ ô bên phải sẽ được cập nhật tự động.\nTHÔNG TIN\nĐể làm mới PivotTable ở bên phải, hãy chọn PivotTable (bất cứ ô nào trong PivotTable), trên dải băng CÔNG CỤ PIVOTTABLE | PHÂN TÍCH, chọn Làm mới hoặc nhấn phím SHIFT+F10 trong ô bất kỳ thuộc PivotTable, sau đó chọn Làm mới.","TÊN DỰ ÁN","SỐ LIỆU ƯỚC TÍNH CỦA NGƯỜI QUẢN LÝ TÀI KHOẢN","SỐ LIỆU ƯỚC TÍNH CỦA NGƯỜI QUẢN LÝ DỰ ÁN","SỐ LIỆU ƯỚC TÍNH CỦA NGƯỜI QUẢN LÝ CHIẾN LƯỢC","SỐ LIỆU ƯỚC TÍNH CỦA CHUYÊN GIA THIẾT KẾ","SỐ LIỆU ƯỚC TÍNH CỦA NHÂN VIÊN SỰ KIỆN","SỐ LIỆU ƯỚC TÍNH CỦA NHÂN VIÊN QUẢN TRỊ","SỐ LIỆU THỰC TẾ CỦA NGƯỜI QUẢN LÝ TÀI KHOẢN","SỐ LIỆU THỰC TẾ CỦA NGƯỜI QUẢN LÝ DỰ ÁN","SỐ LIỆU THỰC TẾ CỦA NGƯỜI QUẢN LÝ CHIẾN LƯỢC","SỐ LIỆU THỰC TẾ CỦA CHUYÊN GIA THIẾT KẾ","SỐ LIỆU THỰC TẾ CỦA NHÂN VIÊN SỰ KIỆN","SỐ LIỆU THỰC TẾ CỦA NHÂN VIÊN QUẢN TRỊ"]
[null,"Dự án 1",{"v":7200,"d":"7,200.00 ₫"},{"v":2400,"d":"2,400.00 ₫"},{"v":18000,"d":"18,000.00 ₫"},{"v":0,"d":"0.00 ₫"},{"v":0,"d":"0.00 ₫"},{"v":1200,"d":"1,200.00 ₫"},{"v":7920,"d":"7,920.00 ₫"},{"v":2640,"d":"2,640.00 ₫"},{"v":19800,"d":"19,800.00 ₫"},{"v":0,"d":"0.00 ₫"},{"v":0,"d":"0.00 ₫"},{"v":1320,"d":"1,320.00 ₫"}]
[null,"Dự án 2",{"v":14400,"d":"14,400.00 ₫"},{"v":24000,"d":"24,000.00 ₫"},{"v":6000,"d":"6,000.00 ₫"},{"v":4000,"d":"4,000.00 ₫"},{"v":0,"d":"0.00 ₫"},{"v":2400,"d":"2,400.00 ₫"},{"v":14040,"d":"14,040.00 ₫"},{"v":23400,"d":"23,400.00 ₫"},{"v":5850,"d":"5,850.00 ₫"},{"v":3900,"d":"3,900.00 ₫"},{"v":0,"d":"0.00 ₫"},{"v":2340,"d":"2,340.00 ₫"}]
[null,"Dự án 3",{"v":18000,"d":"18,000.00 ₫"},{"v":12000,"d":"12,000.00 ₫"},{"v":0,"d":"0.00 ₫"},{"v":25000,"d":"25,000.00 ₫"},{"v":0,"d":"0.00 ₫"},{"v":3000,"d":"3,000.00 ₫"},{"v":18000,"d":"18,000.00 ₫"},{"v":12000,"d":"12,000.00 ₫"},{"v":0,"d":"0.00 ₫"},{"v":25000,"d":"25,000.00 ₫"},{"v":0,"d":"0.00 ₫"},{"v":3000,"d":"3,000.00 ₫"}]
[null,"Dự án 4",{"v":5400,"d":"5,400.00 ₫"},{"v":10800,"d":"10,800.00 ₫"},{"v":0,"d":"0.00 ₫"},{"v":0,"d":"0.00 ₫"},{"v":1200,"d":"1,200.00 ₫"},{"v":900,"d":"900.00 ₫"},{"v":5220,"d":"5,220.00 ₫"},{"v":10440,"d":"10,440.00 ₫"},{"v":0,"d":"0.00 ₫"},{"v":0,"d":"0.00 ₫"},{"v":1160,"d":"1,160.00 ₫"},{"v":870,"d":"870.00 ₫"}]
[null,"Dự án 5",{"v":9000,"d":"9,000.00 ₫"},{"v":3000,"d":"3,000.00 ₫"},{"v":0,"d":"0.00 ₫"},{"v":0,"d":"0.00 ₫"},{"v":12000,"d":"12,000.00 ₫"},{"v":1500,"d":"1,500.00 ₫"},{"v":9180,"d":"9,180.00 ₫"},{"v":3060,"d":"3,060.00 ₫"},{"v":0,"d":"0.00 ₫"},{"v":0,"d":"0.00 ₫"},{"v":12240,"d":"12,240.00 ₫"},{"v":1530,"d":"1,530.00 ₫"}]
[null,"Tổng Cuối",{"v":54000,"d":"54,000.00 ₫"},{"v":52200,"d":"52,200.00 ₫"},{"v":24000,"d":"24,000.00 ₫"},{"v":29000,"d":"29,000.00 ₫"},{"v":13200,"d":"13,200.00 ₫"},{"v":9000,"d":"9,000.00 ₫"},{"v":54360,"d":"54,360.00 ₫"},{"v":51540,"d":"51,540.00 ₫"},{"v":25650,"d":"25,650.00 ₫"},{"v":28900,"d":"28,900.00 ₫"},{"v":13400,"d":"13,400.00 ₫"},{"v":9060,"d":"9,060.00 ₫"}]